bitfinex/quotes_ETHUSD_20250720
["timestamp","ask_amount","ask_price","bid_price","bid_amount"]
[1753037413359,2.66830322,3747.7,3747.3,0.1328]
[1753037413557,2.66846485,3747.5,3747.3,0.1328]
[1753037413744,2.66839966,3747.6,3747.3,0.1328]
[1753037413946,2.66830757,3747.7,3747.3,0.1328]
[1753037414462,3.21830172,3747.8,3747.3,0.1328]
[1753037414628,2.91542716,3747.7,3747.3,0.1328]
[1753037414823,0.2471225,3747.6,3747.3,0.1328]
[1753037415038,0.2471225,3747.5,3747.3,0.1328]
[1753037415222,0.24741264,3747.4,3747.3,0.1328]
[1753037415433,0.24741264,3747.4,3747.3,0.6074]
[1753037416652,2.66830745,3747.7,3747.3,0.6074]
[1753037416860,3.21823243,3747.8,3747.3,0.6074]
[1753037417224,3.21824715,3747.8,3747.3,0.6074]
[1753037417418,0.55,3747.8,3747.3,0.6074]
[1753037417623,3.21824377,3747.8,3747.4,0.4746]
[1753037417955,0.55,3747.8,3747.5,0.4746]
[1753037418362,0.55,3747.8,3747.3,0.1328]
[1753037418531,2.66830727,3747.7,3747.3,0.1328]
[1753037418738,2.66830727,3747.7,3747.3,0.6074]
[1753037418951,3.218248,3747.8,3747.3,0.6074]
[1753037419149,0.55,3747.8,3747.3,3.27598524]
[1753037419356,0.1328,3747.9,3747.4,0.4746]
[1753037419580,2.66818805,3747.9,3747.6,0.1328]
[1753037419879,2.66801846,3748.1,3747.6,0.1328]
[1753037420073,2.6681818,3747.9,3747.6,0.1328]
[1753037420373,2.6682482,3747.8,3747.6,0.1328]
[1753037421280,2.66833177,3747.7,3747.3,0.1328]
[1753037421465,2.66825505,3747.8,3747.3,0.1328]
[1753037421666,2.80096442,3747.9,3747.4,0.4746]
[1753037421966,2.66816442,3747.9,3747.5,0.6074]
[1753037422165,2.66828266,3747.8,3747.5,0.1328]
[1753037422367,2.66818822,3747.9,3747.5,0.1328]
[1753037422871,0.55,3748.0,3747.5,2.80122662]
[1753037423079,3.21810217,3748.0,3747.5,0.1328]
[1753037423244,2.66817292,3747.9,3747.5,0.1328]
[1753037423876,3.21811876,3748.0,3747.5,0.1328]
[1753037424076,2.66816626,3747.9,3747.5,0.1328]
[1753037424653,2.66823536,3747.8,3747.5,0.1328]
[1753037425374,0.55,3748.0,3747.5,0.1328]
[1753037425581,2.66855513,3747.4,3747.1,0.1328]
[1753037426291,2.66855907,3747.4,3747.1,0.1328]
[1753037426491,2.66854138,3747.4,3747.1,0.1328]
[1753037426841,2.66845891,3747.5,3747.1,0.1328]
[1753037428075,2.66838106,3747.6,3747.1,0.1328]
[1753037428595,2.66840024,3747.6,3747.1,0.1328]
[1753037428751,2.66840024,3747.6,3747.1,0.599]
[1753037429291,2.66845674,3747.5,3747.1,0.599]
[1753037429495,2.66840377,3747.6,3747.1,0.599]
[1753037429696,2.66844696,3747.5,3747.1,0.599]
[1753037430304,0.9807,3747.4,3746.3,0.28221648]
[1753037430514,0.9807,3747.4,3746.8,0.1328]
[1753037430665,2.66887293,3746.9,3746.8,0.1328]
[1753037430870,3.09926052,3747.4,3746.8,4.5708]
[1753037430871,0.4307,3747.4,3746.8,4.5708]
[1753037431071,0.55,3747.4,3746.8,4.5708]
[1753037431267,2.66867197,3747.2,3746.8,0.1328]
[1753037431473,2.66887293,3746.9,3746.8,0.1328]
[1753037431759,3.21851683,3747.4,3746.8,4.5688]
[1753037431992,2.66882941,3747.0,3746.8,4.5688]
[1753037432201,2.66887293,3746.9,3746.8,4.5688]
[1753037432359,2.6688241,3747.0,3746.8,4.5688]
[1753037432911,2.66880318,3747.0,3746.8,4.5688]
[1753037433695,2.66875876,3747.1,3746.8,4.5688]
[1753037434093,2.66870703,3747.2,3746.8,4.5688]
[1753037434295,2.66880333,3747.0,3746.8,4.5688]
[1753037434612,2.66887293,3746.9,3746.8,4.5688]
[1753037434824,2.66882195,3747.0,3746.8,4.5688]
[1753037435011,0.55,3747.4,3746.8,4.5688]
[1753037435177,2.66873934,3747.1,3746.8,4.5688]
[1753037435380,2.66867189,3747.2,3746.8,4.5688]
[1753037435582,2.6687329,3747.1,3746.8,4.5688]
[1753037436082,0.782,3748.3,3747.0,0.7581]
[1753037436276,0.1328,3748.1,3747.5,0.1328]
[1753037436586,0.4307,3748.6,3747.8,2.80103202]
[1753037436587,0.1328,3748.6,3747.8,2.80103202]
[1753037436973,2.80047077,3748.6,3747.8,3.26723202]
[1753037437198,0.1328,3748.6,3747.8,0.1328]
[1753037437390,0.1328,3748.6,3747.8,4.5528]
[1753037437586,2.66800377,3748.2,3747.8,4.5528]
[1753037437807,2.66787322,3748.4,3747.8,4.5528]
[1753037438105,2.66803243,3748.1,3747.8,4.5528]
[1753037438269,2.66788376,3748.3,3747.8,4.5528]
[1753037438270,2.66796404,3748.2,3747.8,4.5528]
[1753037438470,0.55,3748.5,3747.8,4.5528]
[1753037438672,0.55,3748.5,3747.8,5.019]
[1753037438871,2.66796043,3748.2,3747.8,5.019]
[1753037439081,2.66789155,3748.3,3747.8,5.019]
[1753037439283,2.66788405,3748.3,3747.8,5.019]
[1753037439500,2.66796811,3748.2,3747.8,5.019]
[1753037439701,2.66788404,3748.3,3747.8,5.019]
[1753037440086,0.1328,3748.6,3747.8,8.53177114]
[1753037440269,2.66766626,3748.6,3747.8,8.53177114]
[1753037440469,2.66761644,3748.7,3747.8,8.53177114]
[1753037441206,3.44954836,3748.8,3747.8,8.53177114]
[1753037441410,3.23750287,3748.9,3747.8,11.53177114]
[1753037441816,2.66752555,3748.8,3747.8,11.53177114]
[1753037442513,3.23747773,3748.9,3747.8,11.53177114]
[1753037442875,0.02,3748.9,3747.8,12.33027114]
[1753037444380,1e-08,3747.9,3747.8,12.33027114]
[1753037445718,1e-08,3747.9,3747.8,18.83845114]
[1753037445940,1e-08,3747.9,3747.8,16.88134114]
[1753037446922,1e-08,3747.9,3747.8,12.33027114]
[1753037447442,1e-08,3747.9,3747.8,12.52650444]
[1753037447803,0.02,3748.9,3748.8,6.43962027]
[1753037448004,0.02,3748.9,3748.8,11.87214265]
[1753037448333,0.02,3748.9,3748.8,12.33834265]
[1753037448710,0.02,3748.9,3748.8,7.94934265]
[1753037448912,0.02,3748.9,3748.8,11.42662027]
[1753037450116,0.02,3748.9,3748.8,7.5148]
[1753037450735,0.02,3748.9,3748.8,3.1328]
[1753037450913,0.02,3748.9,3748.8,7.5148]
[1753037451850,0.02,3748.9,3748.8,0.1328]
[1753037452157,0.02,3748.9,3748.8,4.5138]
[1753037453131,2.68744911,3748.9,3748.8,4.5138]
[1753037453342,2.68744911,3748.9,3748.8,4.5088]
[1753037453865,0.02,3748.9,3748.8,4.5088]
[1753037454058,2.68744911,3748.9,3748.8,4.5088]
[1753037454358,2.68744911,3748.9,3748.8,0.1328]
[1753037454566,0.02,3748.9,3748.8,4.5058]
[1753037454867,2.68744911,3748.9,3748.8,0.1328]
[1753037455022,0.59854728,3748.9,3748.8,4.369]
[1753037455226,2.68746659,3748.9,3748.8,4.369]
[1753037457159,0.02,3748.9,3748.8,4.369]
[1753037457348,2.68744911,3748.9,3748.8,4.369]
[1753037458070,2.66759143,3748.7,3748.6,0.1328]
[1753037458239,2.66754772,3748.8,3748.6,4.4928]
[1753037458641,0.02,3748.9,3748.6,4.4928]
[1753037458844,2.66753645,3748.8,3748.6,4.4928]
[1753037459488,2.68746645,3748.9,3748.6,4.4928]
[1753037460488,2.66752377,3748.8,3748.6,4.4928]
[1753037460686,2.66753449,3748.8,3748.6,4.4928]
[1753037461037,0.02,3748.9,3748.6,4.4928]
[1753037461484,2.68749714,3748.9,3748.6,4.4928]
[1753037461811,0.02,3748.9,3748.6,4.4928]
[1753037462016,0.02,3748.9,3748.8,2.66752027]
[1753037462172,0.02,3748.9,3748.8,2.80032027]
[1753037462509,0.02,3748.9,3748.8,6.26262027]
[1753037465575,0.02,3748.9,3748.8,10.60662027]
[1753037472913,0.022,3748.9,3748.8,10.60662027]
[1753037473218,0.022,3748.9,3748.8,12.04333458]
[1753037474985,0.022,3748.9,3748.8,7.69933458]
[1753037475186,0.022,3748.9,3748.8,12.01433458]
[1753037480744,0.022,3748.9,3748.8,7.4348]
[1753037480922,0.022,3748.9,3748.8,10.56462027]
[1753037483525,0.002,3749.4,3749.3,5.66716453]
[1753037483718,0.002,3749.4,3749.3,9.96316453]
[1753037484215,0.002,3749.4,3749.3,11.18806453]
[1753037484415,0.002,3749.7,3749.6,2.66695114]
[1753037484615,0.002,3749.7,3749.6,14.80863669]
[1753037484822,0.002,3749.7,3749.6,14.78196718]
[1753037485017,0.002,3749.7,3749.6,15.24426718]
[1753037485222,0.002,3749.7,3749.6,11.19085114]
[1753037485545,0.002,3749.7,3749.6,13.427785]
[1753037489142,0.002,3749.7,3749.3,1.79087257]
[1753037489346,0.002,3749.7,3749.4,4.287]
[1753037489548,0.002,3749.7,3749.4,6.95409002]
[1753037489710,0.002,3749.7,3749.4,4.287]
[1753037490424,0.002,3749.7,3749.4,3.787]
[1753037493414,0.002,3749.7,3749.0,3.0]
[1753037493632,0.7687,3749.4,3749.1,4.281]
[1753037493844,2.66723567,3749.2,3749.1,4.281]
[1753037494019,2.66719028,3749.3,3749.1,4.281]
[1753037494364,0.7687,3749.4,3749.1,4.281]
[1753037494365,0.4534,3749.2,3749.1,4.281]
[1753037494655,3.43580226,3749.4,3749.1,4.281]
[1753037494811,3.88920226,3749.4,3749.1,4.281]
[1753037495011,1.2221,3749.4,3749.2,4.281]
[1753037495411,1.2221,3749.4,3749.0,0.1328]
[1753037495629,1.2221,3749.4,3749.1,4.278]
[1753037496131,3.88920429,3749.4,3749.2,4.278]
[1753037496534,0.7687,3749.4,3749.2,4.278]
[1753037498021,3.43580227,3749.4,3749.2,4.278]
[1753037498248,3.88920227,3749.4,3749.2,4.278]
[1753037498750,3.43580227,3749.4,3749.2,4.278]
[1753037498955,0.4534,3749.3,3749.2,4.278]
[1753037500157,3.12056453,3749.3,3749.2,4.278]
[1753037500452,3.78946738,3749.3,3749.2,4.278]
[1753037500656,1.12230285,3749.3,3749.2,4.278]
[1753037500994,3.78946738,3749.3,3749.2,4.278]
[1753037501453,1.12230285,3749.3,3749.2,4.278]
[1753037501754,3.78946738,3749.3,3749.2,4.278]
[1753037501940,1.12230285,3749.3,3749.2,4.278]
[1753037502281,0.4534,3749.3,3749.2,4.278]
[1753037502958,0.7687,3749.4,3749.2,4.278]
[1753037504480,0.8295,3749.7,3749.3,0.4564]
[1753037504652,0.002,3749.7,3749.4,2.66703423]
[1753037504980,0.002,3749.7,3749.6,0.1328]
[1753037505177,0.002,3749.7,3749.6,2.79975114]
[1753037505377,0.002,3749.7,3749.6,0.1328]
[1753037506261,0.002,3749.7,3749.6,2.79975114]
[1753037506783,0.002,3749.7,3749.6,0.5892]
[1753037506986,0.002,3749.7,3749.6,4.01825114]
[1753037507187,0.002,3749.7,3749.6,5.11267658]
[1753037507480,0.002,3749.7,3749.6,4.01825114]
[1753037508049,0.002,3749.7,3749.6,0.1328]
[1753037508457,0.002,3749.7,3749.6,3.25615114]
[1753037509477,1.3067,3749.7,3749.6,4.252]
[1753037509888,3.97359553,3749.7,3749.6,4.252]
[1753037510086,1.3067,3749.7,3749.6,4.252]
[1753037510277,3.97358001,3749.7,3749.6,4.252]
[1753037510474,0.7567,3749.7,3749.6,4.252]
[1753037510700,0.7567,3749.7,3749.4,0.1328]
[1753037511001,3.42358607,3749.7,3749.5,4.256]
[1753037511293,0.7567,3749.7,3749.5,4.256]
[1753037511501,0.002,3749.7,3749.5,4.256]
[1753037511706,0.002,3749.7,3749.5,4.7124]
[1753037512006,0.002,3749.7,3749.6,0.4564]
[1753037513758,0.002,3749.7,3749.6,2.66695114]
[1753037515167,0.002,3749.7,3749.6,3.12335114]
[1753037516019,0.002,3749.7,3749.6,2.66695114]
[1753037517093,0.002,3749.7,3749.6,3.12335114]
[1753037517292,0.002,3749.7,3749.6,4.27417196]
[1753037517499,0.002,3749.7,3749.6,7.27417196]
[1753037529823,0.002,3749.7,3749.6,6.81777196]
[1753037530010,0.002,3749.7,3749.6,5.79975114]
[1753037530503,0.002,3749.7,3749.6,6.26815114]
[1753037533217,0.002,3749.7,3749.6,5.79975114]
[1753037534015,0.002,3749.7,3749.6,6.26815114]
[1753037535035,0.8347,3749.7,3749.6,0.1328]
[1753037535192,2.66702226,3749.5,3749.4,0.001]
[1753037535391,2.66702226,3749.5,3749.4,4.213]
[1753037535598,3.12042226,3749.5,3749.4,4.213]
[1753037538298,3.67042226,3749.5,3749.4,0.001]
[1753037538499,5.32743691,3749.5,3749.4,0.001]
[1753037541543,4.87403691,3749.5,3749.4,0.001]
[1753037545945,5.32743691,3749.5,3749.4,0.001]
[1753037549262,9.52343691,3749.5,3749.4,0.001]
[1753037551261,4.32403691,3749.5,3749.4,0.001]
[1753037551461,8.52003691,3749.5,3749.4,0.001]
[1753037551756,5.32743691,3749.5,3749.4,0.001]
[1753037551961,9.52343691,3749.5,3749.4,0.001]
[1753037552262,9.07003691,3749.5,3749.4,0.001]
[1753037552657,4.87403691,3749.5,3749.4,0.001]
[1753037552862,9.07003691,3749.5,3749.4,0.001]
[1753037555034,3.21759143,3748.7,3748.6,1e-08]
[1753037555235,4.03429143,3748.7,3748.6,1e-08]
[1753037555433,3.92157493,3749.4,3748.6,1e-08]
[1753037555667,2.66759143,3748.7,3748.6,0.45140001]
[1753037556036,2.66759143,3748.7,3748.6,1e-08]
[1753037556234,3.21759143,3748.7,3748.6,1e-08]
[1753037556436,3.95277126,3748.7,3748.6,1e-08]
[1753037556649,5.22217126,3748.7,3748.6,1e-08]
[1753037556948,4.76877126,3748.7,3748.6,1e-08]
[1753037557765,5.22217126,3748.7,3748.6,1e-08]
[1753037560970,9.41817126,3748.7,3748.6,1e-08]
[1753037563944,3.40277126,3748.7,3748.6,1e-08]
[1753037564144,2.66759143,3748.7,3748.6,0.45140001]
[1753037564843,3.21759143,3748.7,3748.6,0.45140001]
[1753037565044,3.35039143,3748.7,3748.6,0.45140001]
[1753037565878,0.1328,3748.7,3748.6,0.45140001]
[1753037566175,2.66759143,3748.7,3748.6,0.45140001]
[1753037569586,2.66759143,3748.7,3748.6,1e-08]
[1753037569952,3.21759143,3748.7,3748.6,1e-08]
[1753037570189,3.98423715,3748.7,3748.6,1e-08]
[1753037570482,3.35039143,3748.7,3748.6,1e-08]
[1753037575692,3.35039143,3748.7,3748.6,0.45140001]
[1753037579903,3.35039143,3748.7,3748.6,1e-08]
[1753037580706,0.6828,3748.7,3748.6,0.43060001]
[1753037581005,2.66751446,3748.9,3748.6,0.43060001]
[1753037581417,0.002,3748.7,3748.6,1e-08]
[1753037582174,0.002,3748.7,3748.6,0.43060001]
[1753037582874,0.002,3748.7,3748.6,1.18800001]
[1753037584684,0.002,3748.7,3748.6,1e-08]
[1753037585218,0.002,3748.7,3748.6,0.43060001]
[1753037587026,0.002,3748.7,3748.6,1e-08]
[1753037587826,0.002,3748.7,3748.6,0.43060001]
[1753037589504,2.66959143,3748.7,3748.6,0.43060001]
[1753037589890,3.21959143,3748.7,3748.6,1e-08]
[1753037590122,4.21996996,3748.7,3748.6,1e-08]
[1753037590393,4.35276996,3748.7,3748.6,1e-08]
[1753037590618,3.89936996,3748.7,3748.6,1e-08]
[1753037591031,4.35276996,3748.7,3748.6,1e-08]
[1753037594931,3.89936996,3748.7,3748.6,1e-08]
[1753037596324,4.35276996,3748.7,3748.6,1e-08]
[1753037597130,8.54576996,3748.7,3748.6,1e-08]
[1753037603812,8.09236996,3748.7,3748.6,1e-08]
[1753037613581,3.89936996,3748.7,3748.6,1e-08]
[1753037613746,3.89936996,3748.7,3748.6,0.45980001]
[1753037613747,2.80239143,3748.7,3748.6,0.45980001]
[1753037614700,0.002,3748.7,3748.6,0.45980001]
[1753037614903,0.002,3748.7,3748.6,1.28330001]
[1753037615476,0.002,3748.7,3748.6,3.9509626]
[1753037615680,0.002,3748.7,3748.6,4.0837626]
[1753037615862,0.002,3748.7,3748.6,5.61003158]
[1753037616065,0.002,3748.7,3748.6,5.58335496]
[1753037620767,0.002,3748.7,3748.6,1.41610001]
[1753037620966,2.66959143,3748.7,3748.6,1.41610001]
[1753037621174,2.66959143,3748.7,3748.6,1e-08]
[1753037622540,2.66959143,3748.7,3748.6,0.45980001]
[1753037623091,0.002,3748.7,3748.6,0.45980001]
[1753037623341,2.66959143,3748.7,3748.6,0.45980001]
[1753037626444,2.66959143,3748.7,3748.6,1e-08]
[1753037627010,3.76678441,3748.7,3748.6,1e-08]
[1753037627212,4.21138441,3748.7,3748.6,1e-08]
[1753037627940,3.76678441,3748.7,3748.6,1e-08]
[1753037631531,3.21959143,3748.7,3748.6,1e-08]
[1753037631854,3.21959143,3748.7,3748.6,0.45980001]
[1753037632647,3.21959143,3748.7,3748.6,1e-08]
[1753037633935,0.002,3748.7,3748.6,1e-08]
[1753037634153,0.002,3748.7,3748.6,0.45980001]
[1753037634326,0.002,3748.7,3748.6,0.59260001]
[1753037634526,0.002,3748.7,3748.6,0.99558698]
[1753037635271,0.002,3748.7,3748.6,1.75828698]
[1753037635455,0.002,3748.7,3748.6,4.42594957]
[1753037638258,0.002,3748.7,3748.6,7.42594957]
[1753037640345,0.002,3748.7,3748.6,4.35530001]
[1753037640539,0.002,3748.7,3748.6,8.53930001]
[1753037640740,0.002,3748.7,3748.6,11.2069626]
[1753037640960,0.002,3748.7,3748.6,8.2069626]
[1753037641145,0.002,3748.7,3748.6,5.53930001]
[1753037642274,0.002,3748.7,3748.6,8.2069626]
[1753037642480,0.002,3748.7,3748.6,9.29443913]
[1753037642689,0.002,3748.7,3748.6,0.89550001]
[1753037642984,0.002,3748.7,3748.6,4.79140001]
[1753037645181,0.002,3748.7,3748.6,7.4590626]
[1753037645583,0.002,3748.7,3748.6,4.79140001]
[1753037645738,0.002,3748.7,3748.6,4.31680001]
[1753037646439,2.66959143,3748.7,3748.6,4.31680001]
[1753037646641,4.24125057,3748.7,3748.6,1e-08]
[1753037646979,4.69465057,3748.7,3748.6,1e-08]
[1753037647482,2.02705914,3748.7,3748.6,1e-08]
[1753037647653,4.24125057,3748.7,3748.6,1e-08]
[1753037659699,3.48675057,3748.7,3748.6,1e-08]
[1753037660365,3.94015057,3748.7,3748.6,1e-08]
[1753037661102,3.48675057,3748.7,3748.6,1e-08]
[1753037663101,3.94015057,3748.7,3748.6,1e-08]
[1753037664001,3.48675057,3748.7,3748.6,1e-08]
[1753037665178,3.94015057,3748.7,3748.6,1e-08]
[1753037665505,3.48675057,3748.7,3748.6,1e-08]
[1753037665911,3.94015057,3748.7,3748.6,1e-08]
[1753037666486,3.48675057,3748.7,3748.6,1e-08]
[1753037666693,3.94015057,3748.7,3748.6,1e-08]
[1753037667419,3.48675057,3748.7,3748.6,1e-08]
[1753037670686,3.21959143,3748.7,3748.6,1e-08]
[1753037670881,3.35239143,3748.7,3748.6,0.44670001]
[1753037671087,3.35239143,3748.7,3748.6,1e-08]
[1753037671519,3.35239143,3748.7,3748.6,0.44670001]
[1753037671921,2.80239143,3748.7,3748.6,1e-08]
[1753037672129,2.80239143,3748.7,3748.6,0.44670001]
[1753037672432,0.1348,3748.7,3748.6,1e-08]
[1753037672639,0.002,3748.7,3748.6,0.44670001]
[1753037673714,2.66959143,3748.7,3748.6,0.44670001]
[1753037673918,2.66959143,3748.7,3748.6,1e-08]
[1753037674121,7.6061772,3748.7,3748.6,1e-08]
[1753037674329,8.0385772,3748.7,3748.6,1e-08]
[1753037674524,15.8085772,3748.7,3748.6,1e-08]
[1753037676111,19.9835772,3748.7,3748.6,1e-08]
[1753037676531,15.8085772,3748.7,3748.6,1e-08]
[1753037676735,19.5511772,3748.7,3748.6,1e-08]
[1753037677249,19.9835772,3748.7,3748.6,1e-08]
[1753037678046,15.8085772,3748.7,3748.6,1e-08]
[1753037678251,19.9835772,3748.7,3748.6,1e-08]
[1753037678445,15.3761772,3748.7,3748.6,1e-08]
[1753037678747,18.7667772,3748.7,3748.6,1e-08]
[1753037678944,7.772,3748.7,3748.6,1e-08]
[1753037679149,7.772,3748.7,3748.6,0.44670001]
[1753037679515,0.002,3748.7,3748.6,0.44670001]
[1753037680618,0.002,3748.7,3748.6,3.1143626]
[1753037682789,0.002,3748.7,3748.6,3.8645626]
[1753037682987,0.002,3748.7,3748.6,4.93786126]
[1753037684642,0.002,3748.7,3748.6,5.07066126]
[1753037685875,0.002,3748.7,3748.6,5.09733788]
[1753037686159,0.002,3748.7,3748.6,5.07066126]
[1753037686775,0.002,3748.7,3748.6,8.09733788]
[1753037686926,0.002,3748.7,3748.6,12.24266126]
[1753037689147,0.002,3748.7,3748.6,2.40299867]
[1753037689467,0.002,3748.7,3748.6,5.50170001]
[1753037689673,0.002,3748.7,3748.6,8.1693626]
[1753037694278,0.002,3748.7,3748.6,11.1693626]
[1753037695681,0.002,3748.7,3748.6,6.9973626]
[1753037695978,0.002,3748.7,3748.6,12.13387835]
[1753037701877,0.002,3748.7,3748.6,1.71671576]
[1753037702078,0.002,3748.7,3748.6,1e-08]
[1753037702423,0.002,3748.7,3748.6,4.16800001]
[1753037703507,0.002,3748.7,3748.6,4.59580001]
[1753037704813,0.002,3748.7,3748.6,4.16800001]
[1753037705900,0.002,3748.7,3748.6,4.59580001]
[1753037706093,0.002,3748.7,3748.6,4.16800001]
[1753037706702,0.002,3748.7,3748.6,4.59580001]
[1753037707200,0.002,3748.7,3748.6,8.56211931]
[1753037708322,0.002,3748.7,3748.6,11.56211931]
[1753037708533,1e-08,3748.7,3748.6,11.56211931]
[1753037708829,1e-08,3748.7,3748.6,17.96011931]
[1753037710300,1e-08,3748.9,3748.8,2.66752027]
[1753037710609,1e-08,3748.9,3748.8,13.2506294]
[1753037710809,1e-08,3748.9,3748.8,13.2239542]
[1753037711013,1e-08,3748.9,3748.8,13.6517542]
[1753037711827,1e-08,3748.9,3748.8,25.5471472]
[1753037712025,1e-08,3748.9,3748.8,23.3107302]
[1753037712302,1e-08,3748.9,3748.8,22.4422642]
[1753037712702,1e-08,3748.9,3748.8,13.7845542]
[1753037712935,1e-08,3748.9,3748.8,15.8197782]
[1753037713241,1e-08,3748.9,3748.8,13.7845542]
[1753037713924,1e-08,3748.9,3748.8,17.0922242]
[1753037715651,1e-08,3749.7,3749.6,2.66695114]
[1753037715827,1e-08,3749.7,3749.6,15.50314114]
[1753037716019,1e-08,3749.7,3749.6,15.60927163]
[1753037716217,1e-08,3749.7,3749.6,16.16670824]
[1753037718054,1e-08,3749.7,3749.6,16.03707163]
[1753037719301,1e-08,3749.7,3749.6,11.55385559]
[1753037719503,1e-08,3749.7,3749.6,11.98165559]
[1753037724134,1e-08,3749.7,3749.6,16.03507163]
[1753037732288,1e-08,3749.9,3749.8,6.45520889]
[1753037732459,1e-08,3749.9,3749.8,12.78636694]
[1753037732648,1e-08,3749.9,3749.8,13.36516694]
[1753037735546,1e-08,3750.3,3750.2,3.45492445]
[1753037735747,1e-08,3750.3,3750.2,7.63858969]
[1753037735994,1e-08,3750.3,3750.2,8.19072445]
[1753037736208,1e-08,3750.3,3750.2,10.2484667]
[1753037740818,1.2429,3751.5,3750.4,6.41828225]
[1753037741095,0.7895,3751.5,3750.4,10.70708225]
[1753037741456,0.7895,3751.5,3750.4,11.15308225]
[1753037741670,0.7895,3751.5,3750.4,13.14615164]
[1753037741873,1.2429,3751.5,3750.4,13.14615164]
[1753037742313,0.7895,3751.5,3750.4,12.70015164]
[1753037742486,0.4534,3751.1,3750.4,12.70015164]
[1753037742678,0.4534,3751.1,3750.4,13.14615164]
[1753037744703,0.4534,3751.3,3750.4,13.14615164]
[1753037746211,0.7895,3751.5,3750.7,2.66616898]
[1753037746410,0.7895,3751.5,3750.7,16.04810372]
[1753037746610,0.7895,3751.5,3750.7,16.60024204]
[1753037747900,0.4534,3751.4,3750.7,12.099826]
[1753037748908,0.7895,3751.5,3750.7,12.545826]
[1753037750300,0.7895,3751.5,3750.7,8.392826]
[1753037750494,0.7895,3751.5,3750.7,12.545826]
[1753037754936,0.02,3751.9,3750.8,5.66609789]
[1753037755105,0.7675,3751.8,3750.8,8.06530802]
[1753037755314,0.02,3751.9,3750.8,8.03864705]
[1753037755630,0.02,3751.9,3750.8,8.85584705]
[1753037756037,0.7675,3751.4,3750.8,12.56084705]
[1753037756209,0.7675,3751.4,3750.8,13.00684705]
[1753037757436,1e-08,3750.9,3750.8,13.00684705]
[1753037758351,1e-08,3751.0,3750.9,5.66602682]
[1753037758561,1e-08,3751.0,3750.9,8.42589607]
[1753037758858,1e-08,3751.0,3750.9,9.32363581]
[1753037759307,1e-08,3751.2,3751.1,2.66588467]
[1753037759508,1e-08,3751.2,3751.1,13.89595955]
[1753037759708,1e-08,3751.2,3751.1,14.44940071]
[1753037759902,1e-08,3751.2,3751.1,16.73530415]
[1753037760449,0.4534,3752.4,3751.1,16.73530415]
[1753037760450,0.8259,3752.8,3752.7,2.66474804]
[1753037760759,0.02,3752.9,3752.8,2.66467704]
[1753037761066,0.02,3752.9,3752.8,2.82412381]
[1753037761351,0.02,3752.9,3752.8,5.82412381]
[1753037761849,0.4734,3752.9,3752.8,9.94647704]
[1753037762054,0.4734,3752.9,3752.8,4.2818]
[1753037762757,1.2957,3752.9,3752.8,4.2818]
[1753037762912,1.13586494,3752.9,3752.8,4.149]
[1753037763111,0.3734,3752.9,3752.8,4.149]
[1753037763339,0.3734,3752.9,3752.5,0.1328]
[1753037763647,2.66474804,3752.7,3752.5,4.2808]
[1753037763831,0.8223,3752.6,3752.5,0.1328]
[1753037764035,3.48711905,3752.6,3752.5,0.1328]
[1753037764348,4.65229204,3752.6,3752.5,0.1328]
[1753037764645,4.03719007,3752.5,3752.4,0.12265902]
[1753037765216,4.34749007,3752.5,3752.4,0.12265902]
[1753037766057,0.55,3752.0,3750.6,2.66623776]
[1753037766372,3.4881988,3751.1,3750.9,0.1328]
[1753037766576,4.34855574,3751.0,3750.9,0.1328]
[1753037766849,4.34855574,3751.0,3749.7,2.73995762]
[1753037766850,0.7873,3750.6,3750.5,0.1328]
[1753037767228,3.76384006,3750.6,3750.5,0.1328]
[1753037767438,1.0976,3750.6,3750.5,0.1328]
[1753037768352,1.0976,3750.6,3750.1,0.02]
[1753037768515,0.3103,3750.5,3750.3,0.1328]
[1753037769047,2.97665946,3750.5,3750.3,0.1328]
[1753037769353,0.3103,3750.4,3750.3,0.1328]
[1753037770250,2.97668225,3750.4,3750.3,0.1328]
[1753037770448,2.95668225,3750.4,3750.3,0.1328]
[1753037772389,0.2903,3750.4,3750.3,0.1328]
[1753037773280,2.95668225,3750.4,3750.3,0.1328]
[1753037775391,4.14770622,3750.4,3750.3,0.1328]
[1753037775558,4.14770622,3750.4,3750.1,0.02]
[1753037775559,3.44472445,3750.2,3750.1,0.02]
[1753037775763,0.7782,3750.2,3750.1,0.02]
[1753037775955,3.69562445,3750.2,3750.1,0.02]
[1753037776367,0.7782,3750.2,3750.1,0.02]
[1753037776963,0.3837,3750.6,3750.1,0.02]
[1753037776964,3.43762075,3750.5,3750.1,0.02]
[1753037777168,0.7713,3750.5,3750.1,0.1528]
[1753037777373,3.43763319,3750.5,3750.1,0.1528]
[1753037777576,0.7713,3750.5,3750.1,0.1528]
[1753037779364,3.43763006,3750.5,3750.1,0.1528]
[1753037780665,0.7713,3750.5,3750.1,0.1528]
[1753037780859,3.43762496,3750.5,3750.1,0.1528]
[1753037781898,0.7713,3750.5,3750.1,0.1528]
[1753037782593,3.43762309,3750.5,3750.1,0.1528]
[1753037782895,0.7713,3750.5,3750.1,0.1528]
[1753037783313,0.7658,3751.1,3750.4,0.1328]
[1753037783617,0.7658,3751.1,3750.6,2.66624006]
[1753037783903,0.7658,3751.7,3751.0,0.1328]
[1753037784058,0.7658,3751.7,3751.3,0.1328]
[1753037784277,0.7658,3751.7,3751.5,2.66555235]
[1753037784483,0.7658,3752.0,3751.3,2.66573112]
[1753037784739,0.7658,3752.0,3751.6,0.1328]
[1753037785218,0.9034,3751.9,3750.9,4.145]
[1753037785384,0.55,3751.7,3751.2,0.1328]
[1753037785581,3.43139774,3751.6,3751.2,0.1328]
[1753037785818,0.3534,3751.5,3751.2,0.1328]
[1753037786018,0.3534,3751.4,3751.2,0.1328]